[Event "IIFL Wealth 4th Mumbai GM"]
[Site "Mumbai"]
[Date "2019.01.06"]
[Round "8"]
[White "Chowdhury, Sohel"]
[Black "Banerjee, Sushant"]
[Result "1/2-1/2"]
[ECO "B01"]
[WhiteElo "2012"]
[BlackElo "2198"]
[Annotator "NA"]
[PlyCount "149"]
[EventDate "2018.12.30"]
[EventType "swiss"]
[EventCountry "IND"]
[SourceTitle "playchess.com"]
[Source "ChessBase"]
[SourceQuality "1"]
[TimeControl "40/5400+30:1800+30"]

1. e4 {[%emt 0:00:00]} d5 {[%emt 0:00:00]} 2. exd5 {[%emt 0:00:05]} Nf6 {[%emt 0:00:00]} 3. Bb5+ {[%emt 0:02:21]} Nbd7 {[%emt 0:00:10]} 4. Nc3 {[%emt 0:02:12]} a6 {[%emt 0:00:49]} 5. Be2 {[%emt 0:00:54]} Nb6 {[%emt 0:02:36]} 6. Nf3 {[%emt 0:01:38] B01: Scandinavian Defence} (6. d4 g6 7. Nf3 Bg7 8. O-O O-O 9. Bf4 Nfxd5 10. Nxd5 Nxd5 11. Be5 Bh6 12. Re1 Bf5 13. Bd3 Qd7 {0-1 (49) Liu,G (2459)-Zeng,C (2542) Xinghua 2018}) 6... Nfxd5 {[%emt 0:01:59]} 7. Nxd5 {[%emt 0:00:40]} Qxd5 {[%emt 0:00:09]} 8. d4 {[%emt 0:01:14]} Bg4 {[%emt 0:02:07]} 9. h3 $146 {[%emt 0:00:16]} ({Predecessor:} 9. c3 e6 10. Qb3 Qxb3 11. axb3 Be7 12. h3 Bf5 13. Bf4 Nd5 {0-1 (62) Janousek,P (2176)-Vojta,T (2369) Tatranske Zruby 2010}) 9... Bh5 {[%emt 0:00:40]} 10. O-O {[%emt 0:00:36]} e6 {[%emt 0:05:42]} 11. b3 {[%emt 0:04:04]} Rd8 {[%emt 0:02:59]} 12. c4 {[%emt 0:03:12]} Qe4 {[%emt 0:05:12]} 13. Bb2 {[%emt 0:02:43]} Be7 {[%emt 0:04:08]} 14. Re1 {[%emt 0:01:23]} O-O {[%emt 0:03:03]} 15. Ng5 {[%emt 0:12:02]} Bxe2 {[%emt 0:04:45]} 16. Nxe4 {[%emt 0:00:10]} Bxd1 {[%emt 0:00:07]} 17. Raxd1 {[%emt 0:00:18]} Rfe8 {[%emt 0:01:05]} 18. Re3 {[%emt 0:03:16]} f5 {[%emt 0:05:26]} 19. Nc3 {[%emt 0:01:28]} Bf6 {[%emt 0:00:37]} 20. Red3 {[%emt 0:00:49]} Nd7 {[%emt 0:01:30]} 21. Ba3 {[%emt 0:05:55]} Rb8 {[%emt 0:13:53]} 22. Bc1 {[%emt 0:07:07]} b5 {[%emt 0:08:04]} 23. cxb5 {[%emt 0:02:05]} axb5 {[%emt 0:00:33]} 24. Bf4 {[%emt 0:00:04]} Rb7 {[%emt 0:02:46]} 25. a4 {[%emt 0:07:36]} bxa4 {[%emt 0:00:34]} 26. Nxa4 {[%emt 0:00:07]} g5 {[%emt 0:06:19]} 27. Be3 {[%emt 0:02:00]} Reb8 {[%emt 0:02:02]} 28. Rb1 {[%emt 0:00:53]} f4 {[%emt 0:02:37]} 29. Bd2 {[%emt 0:01:40]} Rb5 {[%emt 0:04:08]} 30. g3 {[%emt 0:10:03]} fxg3 {[%emt 0:12:44]} 31. Rxg3 {[%emt 0:01:42]} Kf7 {[%emt 0:01:47]} 32. Rf3 {[%emt 0:02:37]} Kg6 {[%emt 0:00:37]} 33. Rc1 {[%emt 0:07:14]} R8b7 {[%emt 0:01:32]} 34. Rc6 {[%emt 0:00:57]} Rf5 {[%emt 0:02:23]} 35. Rxf5 {[%emt 0:02:37]} Kxf5 {[%emt 0:00:33]} 36. Be3 {[%emt 0:00:27]} h5 {[%emt 0:02:03]} 37. Kg2 {[%emt 0:00:11]} h4 {[%emt 0:01:29]} 38. Nc5 {[%emt 0:05:36]} Nxc5 {[%emt 0:00:07]} 39. Rxc5+ {[%emt 0:00:02]} Kg6 {[%emt 0:00:40]} 40. Rc6 {[%emt 0:00:00]} Kf7 {[%emt 0:00:00]} 41. Kf3 {[%emt 0:01:23]} Ke7 {[%emt 0:05:05]} 42. Kg4 {[%emt 0:03:57]} Kd7 {[%emt 0:00:32]} 43. d5 {[%emt 0:01:13]} Rb4+ {[%emt 0:03:06]} 44. Kf3 {[%emt 0:00:53]} Rxb3 {[%emt 0:02:02]} 45. Rxe6 {[%emt 0:00:03]} Be7 {[%emt 0:01:55]} 46. Rg6 {[%emt 0:02:28]} Ke8 {[%emt 0:01:15]} 47. Ke4 {[%emt 0:03:32]} Kf7 {[%emt 0:00:34]} 48. Rc6 {[%emt 0:00:14]} Bd6 {[%emt 0:06:10]} 49. Kf5 {[%emt 0:03:21]} Rb5 {[%emt 0:01:29]} 50. Kxg5 {[%emt 0:00:23]} Rxd5+ {[%emt 0:00:27]} 51. Kxh4 {[%emt 0:00:06]} Ke6 {[%emt 0:01:19]} 52. Kg4 {[%emt 0:00:24]} Ra5 {[%emt 0:01:12]} 53. Bg5 {[%emt 0:04:32]} Ra2 {[%emt 0:02:34]} 54. f4 {[%emt 0:01:37]} Rg2+ {[%emt 0:00:27]} 55. Kf3 {[%emt 0:00:39]} Rh2 {[%emt 0:03:05]} 56. Kg3 {[%emt 0:02:04]} Rh1 {[%emt 0:00:08]} 57. h4 {[%emt 0:01:10]} Kf5 {[%emt 0:01:12]} 58. Rc4 {[%emt 0:01:25]} Rg1+ {[%emt 0:01:41]} 59. Kf3 {[%emt 0:01:14]} Rf1+ {[%emt 0:00:13]} 60. Kg2 {[%emt 0:01:29]} Rb1 {[%emt 0:01:26]} 61. h5 {[%emt 0:00:04]} Kg4 {[%emt 0:00:14]} 62. h6 {[%emt 0:00:44]} Rb2+ {[%emt 0:00:02]} 63. Kf1 $11 {[%emt 0:00:51]} Rh2 {[%emt 0:00:24]} 64. Kg1 {[%emt 0:01:33]} Rh3 {[%emt 0:02:19]} 65. Kg2 {[%emt 0:00:11]} Rg3+ {[%emt 0:00:06]} 66. Kf2 {[%emt 0:01:15]} Rh3 {[%emt 0:00:15]} 67. Ke2 {[%emt 0:01:31]} Kf5 {[%emt 0:00:29]} 68. Kf2 {[%emt 0:02:26]} Kg4 {[%emt 0:00:06]} 69. Kg2 {[%emt 0:01:59]} Rg3+ {[%emt 0:00:05]} 70. Kf1 {[%emt 0:00:13]} Rh3 {[%emt 0:00:10]} 71. Rd4 {[%emt 0:00:46]} Bf8 {[%emt 0:02:03]} 72. Kg2 {[%emt 0:02:40]} Rh5 {[%emt 0:00:30]} 73. Rd7 {[%emt 0:01:27]} Bxh6 {[%emt 0:00:17]} 74. Rxc7 {[%emt 0:00:47]} Bxg5 {[%emt 0:00:10]} 75. fxg5 {[%emt 0:00:13]} 1/2-1/2

[Event "IIFL Wealth 4th Mumbai GM"]
[Site "Mumbai"]
[Date "2019.01.06"]
[Round "8"]
[White "Lama, Milan"]
[Black "Tarun Kanyamarala"]
[Result "1-0"]
[ECO "B22"]
[WhiteElo "1897"]
[BlackElo "2120"]
[Annotator "NA"]
[PlyCount "113"]
[EventDate "2018.12.30"]
[EventType "swiss"]
[EventCountry "IND"]
[SourceTitle "playchess.com"]
[Source "ChessBase"]
[SourceQuality "1"]
[TimeControl "40/5400+30:1800+30"]

1. e4 {[%emt 0:00:00]} c5 {[%emt 0:00:00]} 2. c3 {[%emt 0:00:00]} d5 {[%emt 0:00:00]} 3. exd5 {[%emt 0:00:14]} Qxd5 {[%emt 0:00:07]} 4. d4 {[%emt 0:00:09]} Nc6 {[%emt 0:00:24]} 5. Nf3 {[%emt 0:00:10]} Bf5 {[%emt 0:00:15]} 6. Be3 {[%emt 0:02:55]} Nf6 {[%emt 0:00:31]} 7. c4 {[%emt 0:02:24]} Qd8 {[%emt 0:04:49]} 8. d5 {[%emt 0:01:24]} Nb4 {[%emt 0:00:27]} 9. Na3 {[%emt 0:02:53]} e6 {[%emt 0:02:00]} 10. Nh4 {[%emt 0:04:12]} Be4 {[%emt 0:05:10]} 11. f3 {[%emt 0:05:03]} Nd7 {[%emt 0:21:06]} 12. g3 {[%emt 0:03:04]} Bf5 {[%emt 0:03:37]} 13. Nxf5 {[%emt 0:00:52]} exf5 {[%emt 0:00:05]} 14. Qe2 {[%emt 0:02:42]} Qe7 {[%emt 0:01:02]} 15. Kf2 {[%emt 0:02:41]} a6 {[%emt 0:05:07]} 16. Nc2 {[%emt 0:07:58]} Nxc2 {[%emt 0:03:05]} 17. Qxc2 {[%emt 0:00:05]} Qf6 {[%emt 0:00:25]} 18. Bh3 {[%emt 0:06:38]} g6 {[%emt 0:01:41]} 19. Bd2 {[%emt 0:02:00]} Bd6 {[%emt 0:08:51]} 20. Rhe1+ {[%emt 0:01:21]} Kd8 {[%emt 0:00:54]} 21. Bc3 {[%emt 0:01:08]} Be5 {[%emt 0:02:54]} 22. Rxe5 {[%emt 0:00:40]} Nxe5 {[%emt 0:00:08]} 23. f4 {[%emt 0:00:46]} Re8 {[%emt 0:00:24]} 24. Bxe5 {[%emt 0:00:57]} Qb6 {[%emt 0:00:25]} 25. Qc3 {[%emt 0:00:29]} Kd7 {[%emt 0:00:50]} 26. Bg2 {[%emt 0:00:57]} Rf8 {[%emt 0:01:17]} 27. Bf6 {[%emt 0:00:42]} Qd6 {[%emt 0:00:31]} 28. Qe5 {[%emt 0:01:58]} b5 {[%emt 0:00:36]} 29. Qxd6+ {[%emt 0:03:59]} Kxd6 30. Re1 {[%emt 0:00:30]} Rae8 {[%emt 0:03:31]} 31. Bf1 {[%emt 0:01:37]} Rxe1 {[%emt 0:07:11]} 32. Kxe1 {[%emt 0:00:05]} b4 {[%emt 0:00:09]} 33. Bd3 {[%emt 0:00:14]} h6 {[%emt 0:01:16]} 34. Bc2 {[%emt 0:00:13]} Rg8 {[%emt 0:01:25]} 35. Be5+ {[%emt 0:00:34]} Ke7 {[%emt 0:00:38]} 36. Bc7 {[%emt 0:00:37]} Kd7 {[%emt 0:01:00]} 37. d6 {[%emt 0:00:07]} Re8+ {[%emt 0:00:30]} 38. Kf2 {[%emt 0:00:20]} Re6 {[%emt 0:00:42]} 39. h3 {[%emt 0:01:38]} Kc6 {[%emt 0:01:38]} 40. Ba4+ {[%emt 0:00:00]} Kb7 {[%emt 0:00:00]} 41. Kf3 {[%emt 0:03:46]} h5 {[%emt 0:01:23]} 42. g4 {[%emt 0:00:37]} fxg4+ {[%emt 0:06:22]} 43. hxg4 {[%emt 0:00:21]} h4 {[%emt 0:00:03]} 44. f5 {[%emt 0:01:28]} gxf5 {[%emt 0:03:23]} 45. gxf5 {[%emt 0:03:02]} Rf6 {[%emt 0:00:48]} 46. Kg4 {[%emt 0:00:42]} Rh6 {[%emt 0:00:04]} 47. Kh3 {[%emt 0:00:08]} a5 {[%emt 0:02:40]} 48. Be8 {[%emt 0:01:35]} Rf6 {[%emt 0:01:56]} 49. Kxh4 {[%emt 0:00:06]} Rxf5 {[%emt 0:00:14]} 50. Bxa5 {[%emt 0:00:14]} Rf4+ {[%emt 0:01:34]} 51. Kg3 {[%emt 0:00:13]} Rxc4 {[%emt 0:00:20]} 52. d7 {[%emt 0:00:08]} Rd4 {[%emt 0:00:04]} 53. d8=Q {[%emt 0:00:07]} Rxd8 {[%emt 0:00:03]} 54. Bxd8 {[%emt 0:00:07]} c4 {[%emt 0:00:02]} 55. Ba5 {[%emt 0:00:34]} c3 {[%emt 0:00:10]} 56. bxc3 {[%emt 0:00:09]} bxc3 {[%emt 0:00:04]} 57. Bxc3 {[%emt 0:00:08]} 1-0